bitfinex/quotes_SOLUSD_20230120
["timestamp","ask_amount","ask_price","bid_price","bid_amount"]
[1674174771596,10.0,21.23,21.219,17.96]
[1674174771809,10.0,21.23,21.22,0.96]
[1674174772022,10.0,21.23,21.221,0.96]
[1674174772218,10.0,21.23,21.222,0.96]
[1674174772632,10.0,21.23,21.223,0.96]
[1674174772858,35.32,21.237,21.223,0.96]
[1674174773056,169.08462342,21.285,21.223,0.96]
[1674174773057,45.31,21.24,21.224,0.96]
[1674174773258,10.0,21.24,21.225,0.96]
[1674174773473,10.0,21.24,21.226,0.96]
[1674174773700,10.0,21.24,21.227,0.96]
[1674174773894,146.6769,21.243,21.228,0.96]
[1674174774102,146.6769,21.243,21.229,0.96]
[1674174774310,146.6769,21.243,21.23,0.96]
[1674174774517,146.6769,21.243,21.231,0.96]
[1674174774731,10.0,21.24,21.232,0.96]
[1674174774943,10.0,21.24,21.233,0.96]
[1674174775173,10.0,21.24,21.234,0.96]
[1674174775568,10.0,21.24,21.23,37.0]
[1674174776006,10.0,21.24,21.231,1.92]
[1674174779392,10.0,21.24,21.231,0.96]
[1674174780011,45.31,21.24,21.231,0.96]
[1674174782014,10.0,21.24,21.232,0.96]
[1674174782970,45.31,21.24,21.232,0.96]
[1674174783177,10.0,21.24,21.23,20.0]
[1674174783375,10.0,21.24,21.229,20.0]
[1674174783586,10.0,21.238,21.224,20.0]
[1674174784023,35.32,21.237,21.224,20.0]
[1674174784643,10.0,21.236,21.219,20.0]
[1674174785074,35.32,21.235,21.218,55.47416106]
[1674174785485,10.0,21.233,21.218,100.52839845]
[1674174786117,10.0,21.233,21.219,17.96]
[1674174786320,116.3239,21.234,21.219,25.66111545]
[1674174786534,116.3239,21.234,21.22,13.4822309]
[1674174786747,116.3239,21.234,21.221,23.31851234]
[1674174786949,116.3239,21.234,21.222,4.54171319]
[1674174787158,116.3239,21.234,21.223,18.92]
[1674174788420,10.0,21.233,21.223,18.92]
[1674174789175,10.0,21.236,21.225,7.01599733]
[1674174789383,10.0,21.238,21.227,7.64223983]
[1674174789575,233.1098,21.241,21.228,37.0]
[1674174789786,233.1098,21.241,21.229,1.92]
[1674174790007,233.1098,21.241,21.229,8.66111545]
[1674174790219,233.1098,21.241,21.23,20.0]
[1674174790436,35.31,21.243,21.231,18.92]
[1674174790643,35.3,21.247,21.232,6.22495525]
[1674174790845,35.3,21.247,21.233,18.92]
[1674174791596,35.3,21.247,21.233,25.66111545]
[1674174791803,45.3,21.248,21.234,20.0]
[1674174792119,45.3,21.248,21.235,17.96]
[1674174792328,45.3,21.248,21.236,20.0]
[1674174792538,45.3,21.248,21.237,17.96]
[1674174792731,45.3,21.248,21.238,20.0]
[1674174792943,45.3,21.248,21.239,17.0]
[1674174793169,45.3,21.248,21.237,17.0]
[1674174793361,45.3,21.248,21.238,20.0]
[1674174793689,45.3,21.248,21.239,17.0]
[1674174794725,45.3,21.248,21.222,10.0]
[1674174794936,35.31,21.245,21.221,4.89224975]
[1674174795152,1.92,21.244,21.221,56.68760259]
[1674174795363,10.0,21.243,21.222,4.16402672]
[1674174795716,45.31,21.243,21.222,30.90514217]
[1674174795908,10.0,21.243,21.223,6.05657814]
[1674174796091,35.31,21.242,21.224,20.0]
[1674174796520,116.3757,21.241,21.225,7.85550906]
[1674174796722,116.3757,21.241,21.227,7.4639179]
[1674174796930,116.3757,21.241,21.228,38.92]
[1674174797690,116.3757,21.241,21.229,10.0]
[1674174797880,10.0,21.248,21.23,0.96]
[1674174798090,109.6147,21.249,21.231,7.44745529]
[1674174798323,109.6147,21.249,21.233,7.35784953]
[1674174798528,109.6147,21.249,21.234,17.96]
[1674174798727,109.6147,21.249,21.236,5.61428278]
[1674174798936,109.6147,21.249,21.237,18.92]
[1674174799150,109.6147,21.249,21.238,26.5607307]
[1674174799359,109.6147,21.249,21.239,18.92]
[1674174799594,109.6147,21.249,21.24,20.0]
[1674174799806,109.6147,21.249,21.241,18.92]
[1674174800230,109.6147,21.249,21.242,6.74111545]
[1674174800426,10.0,21.248,21.24,20.0]
[1674174800636,10.0,21.248,21.236,20.0]
[1674174800866,10.0,21.248,21.236,26.74111545]
[1674174801072,35.3,21.247,21.236,20.0]
[1674174801265,35.3,21.247,21.227,51.79535284]
[1674174801477,10.0,21.246,21.228,20.0]
[1674174801801,10.0,21.246,21.228,71.79535284]
[1674174802216,35.31,21.245,21.228,71.79535284]
[1674174802426,10.0,21.244,21.228,71.79535284]
[1674174802847,10.0,21.244,21.229,45.05423739]
[1674174803052,10.0,21.242,21.23,38.92]
[1674174803274,10.0,21.242,21.23,45.66111545]
[1674174803603,10.0,21.242,21.231,6.74111545]
[1674174803796,10.0,21.242,21.232,38.92]
[1674174804205,10.0,21.242,21.233,6.74111545]
[1674174804416,10.0,21.242,21.234,18.92]
[1674174804643,10.0,21.242,21.235,20.0]
[1674174804837,10.0,21.242,21.236,18.92]
[1674174805264,10.0,21.242,21.237,20.0]
[1674174805475,10.0,21.242,21.238,18.92]
[1674174805684,10.0,21.242,21.239,20.0]
[1674174805895,10.0,21.242,21.24,17.0]
[1674174806751,10.0,21.242,21.236,6.74111545]
[1674174806971,10.0,21.242,21.23,45.05423739]
[1674174807172,10.0,21.242,21.228,6.74111545]
[1674174807173,35.31,21.241,21.228,6.74111545]
[1674174807483,10.0,21.24,21.225,7.43947339]
[1674174807692,10.0,21.24,21.231,6.74111545]
[1674174807905,10.0,21.24,21.226,45.05423739]
[1674174808128,10.0,21.24,21.227,26.36397909]
[1674174808435,10.0,21.24,21.228,20.0]
[1674174808640,10.0,21.24,21.229,5.83892855]
[1674174808848,10.0,21.24,21.229,12.580044]
[1674174809168,10.0,21.24,21.23,51.79535284]
[1674174809581,10.0,21.24,21.231,25.66111545]
[1674174809904,10.0,21.24,21.232,6.74111545]
[1674174810117,10.0,21.24,21.233,18.92]
[1674174810306,10.0,21.24,21.233,17.96]
[1674174810516,10.0,21.24,21.234,6.74111545]
[1674174810748,45.31,21.24,21.23,45.05423739]
[1674174811498,45.31,21.24,21.231,6.74111545]
[1674174811701,10.0,21.24,21.232,0.96]
[1674174811895,10.0,21.24,21.232,17.96]
[1674174812109,10.0,21.24,21.231,6.74111545]
[1674174812323,10.0,21.238,21.231,6.74111545]
[1674174813178,10.0,21.238,21.224,45.05423739]
[1674174813390,35.32,21.237,21.217,6.74111545]
[1674174813697,10.96,21.236,21.209,7.64614777]
[1674174813915,10.0,21.236,21.21,6.74111545]
[1674174814101,35.32,21.235,21.21,6.74111545]
[1674174814312,10.0,21.234,21.211,5.51479679]
[1674174814521,10.0,21.234,21.212,17.0]
[1674174814754,35.33,21.233,21.213,20.96]
[1674174815062,35.33,21.233,21.214,24.2443059]
[1674174815259,35.33,21.233,21.215,20.0]
[1674174815474,10.0,21.232,21.215,26.74111545]
[1674174815682,10.0,21.232,21.215,20.0]
[1674174815888,154.1894,21.231,21.216,11.85211048]
[1674174816098,10.0,21.23,21.216,11.85211048]
[1674174816310,10.0,21.23,21.217,26.74111545]
[1674174816517,125.4934,21.23,21.218,17.96]
[1674174816729,125.4934,21.23,21.219,0.96]
[1674174817044,125.4934,21.23,21.22,0.96]
[1674174817259,125.4934,21.23,21.221,0.96]
[1674174817470,125.4934,21.23,21.222,0.96]
[1674174817676,125.4934,21.23,21.223,0.96]
[1674174818108,125.4934,21.23,21.223,24.70111545]
[1674174818435,125.4934,21.23,21.224,6.74111545]
[1674174818622,125.4934,21.23,21.225,17.0]
[1674174819169,125.4934,21.23,21.202,11.3621]
[1674174819369,10.0,21.228,21.216,6.74111545]
[1674174819581,10.0,21.228,21.217,33.4822309]
[1674174819780,10.0,21.228,21.218,20.0]
[1674174819987,35.34,21.227,21.218,20.0]
[1674174820199,10.0,21.226,21.219,6.74111545]
[1674174820621,10.0,21.226,21.218,20.0]
[1674174820836,35.34,21.225,21.218,6.74111545]
[1674174821161,10.0,21.224,21.206,20.0]
[1674174821361,10.0,21.224,21.207,6.74111545]
[1674174821581,10.0,21.224,21.208,20.0]
[1674174821995,10.0,21.224,21.209,6.74111545]
[1674174822408,10.0,21.224,21.21,20.0]
[1674174822732,10.0,21.224,21.211,25.66111545]
[1674174823056,10.0,21.224,21.212,6.74111545]
[1674174823286,10.0,21.224,21.213,38.92]
[1674174823586,10.0,21.224,21.214,6.74111545]
[1674174823778,10.0,21.224,21.215,37.96]
[1674174824204,10.0,21.224,21.216,7.70111545]
[1674174824414,10.0,21.224,21.217,17.96]
[1674174824623,10.0,21.224,21.218,20.96]
[1674174824834,10.0,21.224,21.218,0.96]
[1674174825164,10.0,21.224,21.217,0.96]
[1674174825384,10.0,21.224,21.216,0.96]
[1674174825568,10.0,21.224,21.216,1.92]
[1674174825897,10.0,21.224,21.215,17.0]
[1674174826735,35.34,21.223,21.215,17.0]
[1674174826942,10.0,21.222,21.215,17.0]
[1674174827665,10.0,21.222,21.216,1.92]
[1674174828835,10.0,21.222,21.207,5.86933699]
[1674174829052,10.0,21.222,21.208,20.0]
[1674174830106,10.0,21.222,21.209,17.96]
[1674174831156,10.0,21.222,21.209,23.6186627]
[1674174831775,10.0,21.222,21.21,0.96]
[1674174832097,10.0,21.222,21.211,0.96]
[1674174833015,35.35,21.221,21.212,0.96]
[1674174833233,10.0,21.22,21.213,0.96]
[1674174835470,10.0,21.222,21.213,0.96]
[1674174835784,10.0,21.222,21.214,0.96]
[1674174835973,10.0,21.222,21.215,0.96]
[1674174836409,10.0,21.222,21.209,17.0]
[1674174836606,10.0,21.222,21.21,1.92]
[1674174839641,35.35,21.221,21.21,1.92]
[1674174839873,45.34,21.222,21.21,1.92]
[1674174840072,10.0,21.222,21.21,1.92]
[1674174841120,10.0,21.22,21.208,20.0]
[1674174841559,36.31,21.219,21.2,39.03402405]
[1674174841874,149.9815,21.219,21.187,31.19997313]
[1674174842064,149.9815,21.219,21.188,4.41368472]
[1674174842279,10.0,21.218,21.188,4.41368472]
[1674174842497,1.92,21.217,21.189,39.03402405]
[1674174842715,37.27,21.217,21.19,5.63821656]
[1674174843260,10.0,21.216,21.192,6.40104187]
[1674174843679,35.36,21.215,21.194,6.74986785]
[1674174843871,10.0,21.214,21.194,6.74986785]
[1674174844094,10.0,21.214,21.195,39.99402405]
[1674174844293,10.0,21.214,21.197,5.30145657]
[1674174844504,35.36,21.213,21.198,18.92]
[1674174844852,35.36,21.213,21.198,57.95402405]
[1674174845145,35.36,21.213,21.199,39.03402405]
[1674174845363,35.36,21.213,21.2,18.92]
[1674174845760,35.36,21.213,21.199,39.03402405]
[1674174845975,10.0,21.211,21.196,20.0]
[1674174846191,10.0,21.211,21.192,39.03402405]
[1674174846404,144.3921,21.21,21.193,20.0]
[1674174846729,10.0,21.209,21.193,20.0]
[1674174847132,35.37,21.208,21.193,20.0]
[1674174847546,154.5634,21.208,21.193,20.0]
[1674174847769,109.0321,21.21,21.193,20.0]
[1674174848074,109.0321,21.21,21.195,4.38568664]
[1674174848276,109.0321,21.21,21.196,18.92]
[1674174848489,109.0321,21.21,21.196,57.95402405]
[1674174848911,109.0321,21.21,21.197,39.03402405]
[1674174849124,109.0321,21.21,21.198,18.92]
[1674174851241,109.0321,21.21,21.198,23.35954829]
[1674174851457,109.0321,21.21,21.198,57.95402405]
[1674174851775,109.0321,21.21,21.199,5.29572656]
[1674174851961,109.0321,21.21,21.2,18.92]
[1674174853759,109.0321,21.21,21.195,20.0]
[1674174853975,109.0321,21.21,21.193,4.91073601]
[1674174854390,109.0321,21.21,21.194,39.04988405]
[1674174854602,109.0321,21.21,21.196,6.12963262]
[1674174854814,109.0321,21.21,21.197,17.0]
[1674174855024,10.0,21.209,21.198,1.92]
[1674174855225,45.37,21.209,21.198,1.92]
[1674174855552,10.0,21.209,21.199,6.74111545]
[1674174855766,45.37,21.209,21.2,18.92]
[1674174855981,45.37,21.209,21.2,17.96]
[1674174856197,45.37,21.209,21.201,6.74111545]
[1674174856926,45.37,21.209,21.175,29.65694942]
[1674174857112,113.1351,21.208,21.187,24.24472653]
[1674174857329,113.1351,21.208,21.19,6.74111545]
[1674174857545,113.1351,21.208,21.187,20.0]
[1674174857546,35.37,21.207,21.188,4.97170793]
[1674174857877,10.0,21.206,21.188,11.71282338]
[1674174858077,10.0,21.206,21.189,6.74111545]
[1674174858284,35.37,21.205,21.189,6.74111545]
[1674174858498,0.96,21.204,21.176,19.0340689]
[1674174858707,1.92,21.204,21.182,6.74111545]
[1674174858915,10.0,21.202,21.182,6.74111545]
[1674174859118,116.3997,21.201,21.182,6.74111545]
[1674174859326,151.7797,21.201,21.182,6.74111545]
[1674174859534,10.0,21.2,21.182,6.74111545]
[1674174859746,10.0,21.2,21.176,19.0340689]
[1674174859958,35.38,21.199,21.177,6.74111545]
[1674174860499,35.38,21.199,21.178,10.0]
[1674174860713,35.38,21.199,21.178,48.49564205]
[1674174860901,35.38,21.199,21.179,68.00590032]
[1674174861112,35.38,21.199,21.18,8.61728737]
[1674174861327,35.38,21.199,21.181,17.0]
[1674174861545,35.38,21.199,21.182,1.92]
[1674174861752,35.38,21.199,21.182,21.92]
[1674174861975,35.38,21.199,21.183,6.6586249]
[1674174862181,35.38,21.199,21.185,6.36124266]
[1674174862395,35.38,21.199,21.187,5.12026686]
[1674174862598,35.38,21.199,21.188,17.96]
[1674174862805,35.37,21.205,21.19,7.23327207]
[1674174863125,35.37,21.206,21.191,25.66111545]
[1674174863319,45.37,21.207,21.192,25.63369095]
[1674174863540,45.37,21.207,21.193,18.92]
[1674174863743,45.37,21.207,21.194,20.0]
[1674174863957,45.37,21.207,21.195,18.92]
[1674174864260,45.37,21.207,21.196,20.0]
[1674174864692,45.37,21.207,21.191,20.0]
[1674174865113,45.37,21.207,21.192,6.74111545]
[1674174865326,45.37,21.207,21.193,20.0]
[1674174865524,45.37,21.207,21.194,18.92]
[1674174865733,45.37,21.207,21.195,20.0]
[1674174865945,45.26533328,21.207,21.196,18.92]
[1674174867965,45.26533328,21.207,21.196,17.96]
[1674174868174,45.26533328,21.207,21.196,17.0]
[1674174868698,45.26533328,21.207,21.197,0.96]
[1674174869642,45.26533328,21.207,21.198,0.96]
[1674174869854,9.89533328,21.207,21.199,0.96]
[1674174870186,148.5051,21.208,21.2,0.96]
[1674174870187,113.1351,21.208,21.2,0.96]
[1674174870573,35.36,21.213,21.201,0.96]
[1674174870886,35.36,21.215,21.202,0.96]
[1674174871095,35.36,21.215,21.202,7.69372249]
[1674174871329,35.36,21.215,21.201,0.96]
[1674174871648,10.0,21.214,21.197,6.73372249]
[1674174871848,10.0,21.214,21.198,17.96]
[1674174872052,36.32,21.213,21.195,42.69257939]
[1674174872258,36.32,21.213,21.196,20.0]
[1674174872473,10.0,21.212,21.196,20.0]
[1674174872800,10.0,21.212,21.175,5.5259]
[1674174873001,52.36,21.211,21.175,107.6377]
[1674174873199,37.28,21.211,21.187,6.73372249]
[1674174873409,114.2538,21.21,21.187,6.73372249]
[1674174873723,1.92,21.209,21.187,6.73372249]
[1674174873954,10.0,21.208,21.187,6.73372249]
[1674174874138,1.92,21.207,21.187,6.73372249]
[1674174874351,37.29,21.207,21.187,6.73372249]
[1674174874575,37.29,21.207,21.188,17.96]
[1674174874772,10.0,21.206,21.188,17.96]
[1674174874990,1.92,21.205,21.188,17.96]
[1674174875208,37.29,21.205,21.188,17.96]
[1674174875612,10.0,21.204,21.188,17.96]
[1674174875957,1.92,21.203,21.188,17.96]
[1674174876143,37.3,21.203,21.188,0.96]
[1674174876672,10.0,21.202,21.188,0.96]
[1674174876876,10.0,21.202,21.189,0.96]
[1674174877215,35.38,21.201,21.19,0.96]
[1674174877409,10.0,21.202,21.191,0.96]
[1674174877617,35.38,21.2,21.192,0.96]
[1674174877934,35.38,21.201,21.193,0.96]
[1674174878136,35.38,21.201,21.194,0.96]
[1674174879100,10.0,21.2,21.191,17.0]
[1674174880362,10.0,21.2,21.189,17.0]
[1674174880554,10.0,21.198,21.189,17.0]
[1674174882238,10.0,21.198,21.188,17.0]
[1674174882549,10.0,21.198,21.189,1.92]
[1674174883830,10.0,21.198,21.189,21.92]
[1674174884022,10.0,21.2,21.19,17.0]
[1674174884225,10.0,21.2,21.191,21.92]
[1674174884437,10.0,21.2,21.192,17.0]
[1674174884754,10.0,21.2,21.193,21.92]
[1674174884976,10.0,21.2,21.194,17.0]
[1674174885296,10.0,21.2,21.195,20.0]
[1674174885486,10.0,21.2,21.196,17.0]
[1674174885697,10.0,21.2,21.197,20.0]
[1674174887585,45.38,21.2,21.197,20.0]
[1674174887805,10.0,21.2,21.183,20.0]
[1674174888341,10.0,21.198,21.184,6.73372249]
[1674174888545,10.0,21.198,21.185,20.0]
[1674174888753,10.0,21.198,21.184,6.73372249]
[1674174888969,10.0,21.198,21.185,7.19552766]
[1674174889169,10.0,21.198,21.186,0.96]
[1674174889380,10.0,21.198,21.187,0.96]
[1674174889694,45.38,21.2,21.188,0.96]
[1674174889919,45.38,21.2,21.189,0.96]
[1674174890761,10.0,21.2,21.189,0.96]
[1674174891916,146.6738,21.201,21.19,7.19552766]
[1674174892110,111.2938,21.201,21.191,18.92]
[1674174892532,111.2938,21.201,21.191,26.11552766]
[1674174893050,10.0,21.2,21.191,26.11552766]
[1674174894959,10.0,21.2,21.191,17.96]
[1674174895495,10.0,21.2,21.191,0.96]
[1674174895698,10.0,21.2,21.19,0.96]
[1674174896844,10.0,21.2,21.191,0.96]
[1674174902229,10.0,21.2,21.192,0.96]
[1674174902421,10.0,21.2,21.193,0.96]
[1674174902632,10.0,21.2,21.194,0.96]
[1674174903157,10.0,21.2,21.195,0.96]
[1674174906735,10.0,21.2,21.189,7.19552766]
[1674174907162,10.0,21.2,21.181,7.83623635]
[1674174907389,10.0,21.198,21.182,27.19552766]
[1674174908951,10.0,21.198,21.182,70.89531612]
[1674174909168,10.0,21.198,21.183,18.92]
[1674174909563,10.0,21.198,21.183,26.11552766]
[1674174909776,10.0,21.198,21.184,34.39105532]
[1674174909985,10.0,21.198,21.185,23.63592464]
[1674174910200,10.0,21.198,21.186,7.66647659]
[1674174910428,10.0,21.198,21.187,18.92]
[1674174910639,10.0,21.198,21.187,26.11552766]
[1674174911253,10.0,21.198,21.188,7.19552766]
[1674174911582,146.6738,21.201,21.189,18.92]
[1674174911790,111.2938,21.201,21.189,25.90091169]
[1674174912010,111.2938,21.201,21.19,7.19552766]
[1674174912211,10.0,21.2,21.191,18.92]
[1674174913877,10.0,21.2,21.191,17.0]
[1674174914100,10.0,21.198,21.191,17.0]
[1674174914309,10.0,21.2,21.192,1.92]
[1674174916829,111.2938,21.201,21.192,1.92]
[1674174917583,10.0,21.2,21.191,7.19552766]
[1674174918835,111.2938,21.201,21.185,11.93042883]
[1674174919040,111.2938,21.201,21.186,25.61734272]
[1674174919264,111.2938,21.201,21.187,4.17906096]
[1674174919450,111.2938,21.201,21.188,18.92]
[1674174919659,111.2938,21.201,21.189,4.85617482]
[1674174919869,111.2938,21.201,21.19,18.92]
[1674174921129,111.2938,21.201,21.19,0.96]
[1674174921344,111.2938,21.201,21.189,0.96]
[1674174921766,111.2938,21.201,21.189,46.9729218]
[1674174921972,111.2938,21.201,21.19,7.62515607]
[1674174922184,111.2938,21.201,21.191,0.96]
[1674174922411,111.2938,21.201,21.192,0.96]
[1674174923044,154.792,21.208,21.192,20.96]
[1674174923244,154.792,21.208,21.194,6.89464047]
[1674174923460,154.792,21.208,21.195,0.96]
[1674174923786,154.792,21.208,21.195,38.92]
[1674174924495,154.792,21.208,21.196,6.80428121]
[1674174924717,154.792,21.208,21.197,18.92]
[1674174926402,113.0887,21.211,21.198,13.32086481]
[1674174926617,35.36,21.215,21.199,18.92]
[1674174926830,35.36,21.215,21.2,26.32834289]
[1674174927038,35.36,21.215,21.201,23.23283917]
[1674174927257,35.35,21.217,21.203,6.98805422]
[1674174927665,35.35,21.217,21.204,96.28442646]
[1674174927876,35.35,21.217,21.205,4.22136249]
[1674174928092,35.35,21.217,21.206,18.92]
[1674174928412,35.35,21.219,21.207,57.36442646]
[1674174928604,35.34,21.225,21.208,24.44832475]
[1674174928815,35.34,21.225,21.21,7.85874225]
[1674174929031,35.34,21.225,21.211,17.96]
[1674174929233,35.34,21.225,21.212,20.96]
[1674174929553,35.34,21.225,21.213,23.29928055]
[1674174929767,35.34,21.227,21.214,20.96]
[1674174929981,35.34,21.227,21.215,22.32413288]
[1674174930302,35.34,21.227,21.216,20.96]
[1674174930517,146.2355,21.24,21.217,24.63113396]
[1674174930709,146.2355,21.24,21.218,0.96]
[1674174931043,10.0,21.239,21.219,0.96]
[1674174931259,10.0,21.239,21.22,0.96]
[1674174931441,35.32,21.238,21.22,0.96]
[1674174932172,11.92,21.237,21.22,0.96]
[1674174932728,10.0,21.235,21.22,0.96]
[1674174933134,35.32,21.234,21.221,0.96]
[1674174933326,35.32,21.234,21.222,0.96]
[1674174933539,10.0,21.233,21.222,0.96]
[1674174933979,10.0,21.231,21.222,0.96]
[1674174934405,35.33,21.23,21.222,0.96]
[1674174937358,35.33,21.23,21.195,397.4]
[1674174937667,110.3351,21.229,21.208,57.99535113]
[1674174937854,10.0,21.228,21.208,63.61171809]
[1674174938065,45.33,21.228,21.208,71.36860096]
[1674174938277,45.33,21.228,21.209,64.95784108]
[1674174938504,45.33,21.228,21.21,17.0]
[1674174938722,45.33,21.228,21.211,0.96]
[1674174938910,45.33,21.228,21.211,66.712234]
[1674174939123,45.33,21.228,21.212,25.71688287]
[1674174939449,45.33,21.228,21.213,8.71688287]
[1674174939765,45.33,21.228,21.214,17.96]
[1674174939956,45.33,21.228,21.215,0.96]
[1674174940383,45.33,21.228,21.215,8.71688287]
[1674174940600,45.33,21.228,21.216,25.71688287]
[1674174940799,45.33,21.228,21.217,0.96]
[1674174941007,45.33,21.228,21.218,0.96]
[1674174941221,10.0,21.228,21.219,0.96]
[1674174941456,10.0,21.228,21.219,8.71688287]
[1674174941642,10.0,21.228,21.22,24.75688287]
[1674174941852,10.0,21.228,21.22,7.75688287]
[1674174942061,120.3351,21.229,21.221,26.67688287]
[1674174942275,120.3351,21.229,21.222,0.96]
[1674174942504,120.3351,21.229,21.222,8.71688287]
[1674174942705,120.3351,21.229,21.223,7.75688287]
[1674174942921,120.3351,21.229,21.224,17.0]
[1674174943129,10.0,21.231,21.225,21.92]
[1674174943338,10.0,21.231,21.225,29.67688287]
[1674174943525,10.0,21.233,21.226,24.75688287]
[1674174943744,10.0,21.233,21.227,0.96]
[1674174944191,10.0,21.233,21.227,8.71688287]
[1674174944498,45.32,21.238,21.228,25.71688287]
[1674174944683,45.32,21.238,21.228,17.0]
[1674174944684,10.0,21.238,21.228,17.0]
[1674174944895,10.0,21.235,21.227,0.96]
[1674174945318,35.32,21.236,21.228,7.75688287]
[1674174945533,10.0,21.238,21.229,17.96]
[1674174945745,154.1928,21.239,21.23,0.96]
[1674174945968,154.1928,21.239,21.23,9.38798924]
[1674174946170,154.1928,21.239,21.231,26.38798924]
[1674174946491,154.1928,21.239,21.232,8.42798924]
[1674174946706,154.1928,21.239,21.233,17.0]
[1674174946921,108.8728,21.239,21.234,1.92]
[1674174947449,108.8728,21.239,21.235,8.42798924]
[1674174947628,108.8728,21.239,21.236,17.0]
[1674174947965,35.3,21.247,21.236,17.0]
[1674174947966,10.0,21.246,21.236,17.0]
[1674174948376,35.31,21.245,21.21,58.55220896]
[1674174948587,10.0,21.244,21.231,8.42798924]
[1674174948828,10.0,21.244,21.232,17.0]
[1674174949136,35.31,21.243,21.232,17.0]
[1674174949347,10.0,21.242,21.232,17.0]
[1674174949753,10.0,21.24,21.232,17.0]
[1674174951430,35.32,21.239,21.232,17.0]
[1674174951964,10.0,21.238,21.224,20.0]
[1674174952174,10.0,21.238,21.228,9.80395878]
[1674174952391,35.32,21.237,21.228,9.80395878]
[1674174953024,10.0,21.238,21.228,9.80395878]
[1674174953221,35.32,21.239,21.229,0.96]
[1674174953433,120.353,21.24,21.23,0.96]
[1674174953643,120.353,21.24,21.231,0.96]
[1674174953853,110.353,21.24,21.232,0.96]
[1674174954067,110.353,21.24,21.233,0.96]
[1674174954279,110.353,21.24,21.234,0.96]
[1674174954697,110.353,21.24,21.234,27.76395878]
[1674174954911,110.353,21.24,21.235,0.96]
[1674174955117,110.353,21.24,21.235,17.96]
[1674174955659,10.0,21.239,21.235,17.0]
[1674174956802,10.0,21.239,21.235,26.80395878]
[1674174957846,10.0,21.239,21.235,17.0]
[1674174958267,10.0,21.239,21.234,17.0]
[1674174958699,10.0,21.239,21.234,26.80395878]
[1674174961430,110.353,21.24,21.234,26.80395878]
[1674174961635,110.353,21.24,21.235,1.92]
[1674174961853,110.353,21.24,21.235,11.72395878]
[1674174962058,35.31,21.245,21.236,17.0]
[1674174962273,35.3,21.249,21.237,1.92]
[1674174962491,35.3,21.249,21.237,10.76395878]
[1674174962710,10.0,21.248,21.236,17.0]
[1674174962905,10.0,21.248,21.234,17.0]
[1674174963115,10.0,21.248,21.235,1.92]